Cogmind - Beta 16 @@@ ROGUE MODE // 2026.01.31 @ 15:32:29 Player: puppuppit Result: Destroyed by 8R-AWN with 8R-AWN's Boregun Performance ------------- Evolutions (1) 500 Regions Visited (5) 1000 Robots Destroyed (98) 490 Value Destroyed (1692) 1692 Prototype IDs (8) 160 Alien Tech Used (0) 0 Bonus (310) 310 TOTAL SCORE: 4152 Bonus ------- High Alert Combat Kills 10 Follower Combat Kills 359 Friendly Fire -59 Cogmind --------- Core Integrity 0/400 Matter 126/300 Energy 275/275 System Corruption 2% Temperature Hot (219) Movement Treading (160) Location -9/Exiles Parts ------- > --- POWER (1) -------- Deuterium Engine > --- PROPULSION (3) --- Light Treads Light Treads Light Treads > --- UTILITY (2) ------ Reactive Plating Reactive Plating > --- WEAPON (3) ------- Improved Light Cannon Assault Cannon Gauss Cannon > --- INVENTORY (5) ---- Medium Matter Pod (100) Advanced Targeting Computer Weapon Cycler Peak State ------------ > --- POWER ------------ Deuterium Engine > --- PROPULSION ------- Light Treads Light Treads Light Treads > --- UTILITY ---------- Reactive Plating Reactive Plating > --- WEAPON ----------- Assault Cannon Flak Cannon Gauss Cannon > --- INVENTORY -------- Medium Matter Pod Medium Matter Pod Advanced Targeting Computer Weapon Cycler Improved Light Cannon [Rating: 23] Favorites ----------- Power Cooled Ion Engine Engine Cooled Ion Engine Power Core Light Nuclear Core Propulsion Light Treads Treads Light Treads Utility High-capacity Storage Unit Device Improved Terrain Scanner Storage High-capacity Storage Unit Processor Advanced Targeting Computer Hackware Hacking Suite Protection Core Shielding Weapon Light Cannon Energy Gun Particle Gun Energy Cannon Light EM Pulse Cannon Ballistic Gun Light Assault Rifle Ballistic Cannon Light Cannon Launcher Grenade Launcher Build | -11 -10 -10 -9 -9 -9 ------- Run | Yrd Mat Min Mat Min Exi Slots Evolved 2 | . . . 2 . . Power . | . . . . . . Propulsion 1 | . . . 1 . . Utility . | . . . . . . Weapon 1 | . . . 1 . . Parts Attached 55 | 8 9 8 20 3 7 Power 12 | 1 2 5 3 . 1 Engine 9 | 1 1 3 3 . 1 Core 3 | . 1 2 . . . Reactor . | . . . . . . Propulsion 11 | 2 1 . 6 1 1 Treads 11 | 2 1 . 6 1 1 Leg . | . . . . . . Wheel . | . . . . . . Hover . | . . . . . . Flight . | . . . . . . Utility 13 | 2 3 1 4 1 2 Device 1 | 1 . . . . . Storage 5 | 1 3 . . 1 . Processor 2 | . . . 2 . . Hackware 1 | . . . 1 . . Protection 4 | . . 1 1 . 2 Artifact . | . . . . . . Weapon 19 | 3 3 2 7 1 3 Energy Gun 3 | 2 1 . . . . Energy Cannon 1 | . . . . . 1 Ballistic Gun 4 | 1 1 2 . . . Ballistic Cannon 7 | . . . 5 . 2 Launcher 4 | . 1 . 2 1 . Special Weapon . | . . . . . . Impact Weapon . | . . . . . . Slashing Weapon . | . . . . . . Piercing Weapon . | . . . . . . Special Melee Weapon . | . . . . . . Unidentified Prototypes 2 | . . . 2 . . Parts Lost 14 | . 2 3 1 . 8 Power 4 | . 1 2 . . 1 Propulsion 4 | . 1 . . . 3 Utility . | . . . . . . Weapon 6 | . . 1 1 . 4 Highest Loss Streak 7 | . 1 2 1 . 7 To Critical Strikes 1 | . . . . . 1 Average Backups 16 | 1 12 14 18 20 16 Power . | . . . . 1 . Propulsion 2 | . . 1 3 3 2 Utility 7 | . 6 7 8 8 8 Weapon 4 | . 4 5 4 5 4 Tool/Special . | . . . . . . Unused Backups 25 | . 4 4 7 2 8 Power 2 | . . . 2 . . Propulsion 1 | . 1 . . . . Utility 16 | . 3 3 3 . 7 Weapon 4 | . . 1 1 2 . Tool/Special 2 | . . . 1 . 1 Average Slot Usage (%) 99 | . 99 97 99 100 91 Engine 10 | . 10 11 9 11 8 Core 1 | . 3 . 1 . . Treads 31 | . 27 28 32 33 30 Device 4 | . 14 2 . . . Storage 12 | . 14 14 11 11 9 Processor 2 | . . . 2 11 6 Hackware 3 | . . . 7 . . Protection 1 | . . 11 1 . 5 Ballistic Gun 8 | . 24 26 . . . Ballistic Cannon 20 | . . . 32 32 27 Peak Build Rating 23 | 9 13 11 20 19 23 Average Rating 14 | 6 10 8 16 18 18 On Entrance 11 | . 9 10 11 19 19 Avg Prop Armor Cover (%) . | . . . . . . Naked Turns . | . . . . . . Heaviest Build 62 | 14 51 29 62 60 60 Greatest Support 60 | 40 40 40 60 60 60 Greatest Overweight (x) 1 | . 1 . 1 . . Average Overweight (x) . | . . . . . . Largest Inventory Capacity 20 | 8 20 15 20 20 20 Average Capacity 17 | 7 14 15 19 20 17 Most Carried 20 | 3 15 15 20 20 20 Average Carried 16 | 1 12 14 18 19 16 Final Capacity 20 | 8 15 15 20 20 5 Final Carried 20 | 3 15 15 20 20 3 Class Distribution -------------------- 37% | Mutant 35% | Gunner 13% | Scavenger-Gunner 6% | Tank 5% | Skirmisher Dominant Class ---------------- Mutant | -10/Materials Mutant | -10/Mines Gunner | -9/Materials Gunner | -9/Mines Gunner | -9/Exiles Resources | -11 -10 -10 -9 -9 -9 ----------- Run | Yrd Mat Min Mat Min Exi Matter Collected 3482 | 356 832 266 1535 243 250 Remotely . | . . . . . . Salvage Created 2690 | 182 844 89 1180 353 42 Parts 193 | 18 59 7 85 24 . Haulers Intercepted 8 | . 2 . 6 . . Recyclers Shooed 4 | . 2 . 1 1 . Parts Field Recycled . | . . . . . . Retrieved Matter . | . . . . . . Parts Self-Destructed . | . . . . . . Prevented . | . . . . . . Parts Restored . | . . . . . . Kills | -11 -10 -10 -9 -9 -9 ------- Run | Yrd Mat Min Mat Min Exi Combat Hostiles Destroyed 52 | . 14 4 21 7 6 Guns 14 | . 14 . . . . Cannons 16 | . . . 12 4 . AOE 22 | . . 4 9 3 6 Classes Destroyed 13 | 3 6 . 2 . 2 Worker 11 | 2 3 . 2 4 . Builder 4 | . 1 . 3 . . Tunneler 5 | 3 . . . 2 . Hauler 8 | . 2 . 6 . . Recycler 12 | 1 3 . 6 2 . Mechanic 1 | . . . 1 . . Operator 2 | . 1 . 1 . . Turret 1 | . . . . . 1 Watcher 8 | . 3 . 5 . . Swarmer 15 | . 6 . 6 3 . Grunt 29 | . 8 4 13 4 . Sentry 3 | . . . 3 . . Assembled 6 | . . . . . 6 Best Kill Streak 8 | 3 8 2 5 3 6 Combat Bots Only 6 | . 3 2 4 3 6 Max Kills in Single Turn 3 | 1 2 2 3 3 3 Gunslinging . | . . . . . . Exploded 3 | . . 2 3 3 3 Melee . | . . . . . . Uniques/NPCs Destroyed . | . . . . . . Combat | -11 -10 -10 -9 -9 -9 -------- Run | Yrd Mat Min Mat Min Exi Hostile Shots Fired 252 | . 75 16 83 9 69 Missed 65 | . 18 2 26 3 16 Hits 187 | . 57 14 57 6 53 Melee 1 | . . . . . 1 Projectile 186 | . 57 14 57 6 52 Critical Strikes 12 | . 2 . . . 10 Damage Taken 3638 | . 681 538 818 92 1509 Core 566 | . 120 43 123 11 269 Absorbed by Shields . | . . . . . . Redirected to Shielding 3 | . . . 3 . . Ignored by Resistances 203 | . . . . . 203 Regen/Repaired (Parts) 530 | . 81 . 449 . . Core Remaining (%) 67 | 100 . 34 . . . Volleys Fired 215 | 13 86 7 71 14 24 Largest 3 | 2 2 2 3 3 3 Hottest 126 | 60 85 50 104 97 126 Shots Fired 499 | 26 163 14 206 39 51 Gun 189 | 26 154 9 . . . Cannon 272 | . . . 197 37 38 Launcher 38 | . 9 5 9 2 13 Special . | . . . . . . Kinetic 419 | 13 127 9 197 37 36 Thermal 40 | 13 27 . . . . Explosive 38 | . 9 5 9 2 13 Electromagnetic 2 | . . . . . 2 Robot Hit Streak 15 | 4 12 3 15 8 9 Robot Miss Streak 8 | 2 7 2 5 2 8 Penetration Max . | . . . . . . Secondary Targets 4 | . 4 . . . . Max Gunslinging Chain 1 | . 1 . . . . Shots Hit Robots 295 | 15 94 9 126 22 29 Core Hits 179 | 7 44 8 68 21 31 Critical Kills . | . . . . . . Critical Parts Destroyed 2 | . 2 . . . . Critical Strikes 9 | . 2 . 4 2 1 Destroy 2 | . 2 . . . . Blast 7 | . . . 4 2 1 Melee Attacks . | . . . . . . Impact . | . . . . . . Slashing . | . . . . . . Piercing . | . . . . . . Sneak Attacks . | . . . . . . Combat Hostiles . | . . . . . . Follow-up Attacks . | . . . . . . Damage Inflicted 7191 | 183 1129 368 3497 647 1367 Guns 1315 | 183 1087 45 . . . Cannons 3450 | . . . 2520 446 484 Explosions 2426 | . 42 323 977 201 883 Melee . | . . . . . . Ramming . | . . . . . . Kinetic 4443 | 130 838 45 2520 446 464 Thermal 302 | 53 249 . . . . Explosive 2426 | . 42 323 977 201 883 Electromagnetic 20 | . . . . . 20 Impact . | . . . . . . Slashing . | . . . . . . Piercing . | . . . . . . Highest Corruption 5 | . . 5 2 2 2 Average Corruption 1 | . . 5 1 2 2 Corruption Purged . | . . . . . . Corruption Blocked . | . . . . . . Effects 68 | . . 13 40 10 5 Message Errors 14 | . . 4 8 1 1 Matter Fused 19 | . . 3 15 1 . Heat Flow Errors 7 | . . 1 4 1 1 Energy Discharges 12 | . . 1 8 2 1 Parts Rejected 2 | . . . 1 . 1 Data Loss (minor) 6 | . . 2 1 3 . Data Loss (major) 3 | . . 1 1 1 . Misfires 3 | . . . 1 1 1 Alerts 2 | . . 1 1 . . Overload Shots . | . . . . . . Overflow Damage 162 | . 17 . 31 21 93 Projectiles 29 | . . . 5 3 21 Explosions 133 | . 17 . 26 18 72 Melee . | . . . . . . Knockbacks 42 | . . . 32 4 6 Impact . | . . . . . . Kinetic 42 | . . . 32 4 6 Secondary . | . . . . . . Self-Inflicted Damage 102 | . 8 50 . 15 29 Shots 6 | . 1 3 . 1 1 Rammed . | . . . . . . Targets Rammed 1 | . . . 1 . . Kicked . | . . . . . . Crushed 1 | . . . 1 . . Highest Temperature 426 | . 210 149 277 204 426 Average Temperature 60 | . 63 42 39 33 159 Received Heat Transfer 711 | . 294 102 282 33 . Effects 1 | . . . . . 1 Shutdowns 1 | . . . . . 1 Siege Activations . | . . . . . . Martial Activations . | . . . . . . Shielding Activations . | . . . . . . Robots Disrupted . | . . . . . . Combat Hostiles . | . . . . . . Robots Corrupted . | . . . . . . Combat Hostiles . | . . . . . . Parts Fried . | . . . . . . Impact Corruptions . | . . . . . . Robots Melted . | . . . . . . Combat Hostiles . | . . . . . . Parts Melted . | . . . . . . Heat Transferred 708 | 125 583 . . . . Parts Sabotaged . | . . . . . . Parts Stolen . | . . . . . . Parts Stripped . | . . . . . . Power Chain Reactions . | . . . . . . Alert | -11 -10 -10 -9 -9 -9 ------- Run | Yrd Mat Min Mat Min Exi Maximum Alert Level 2 | . . . 2 1 . Low Security (%) 71 | 100 100 100 54 52 . Level 1 15 | . . . 20 47 . Level 2 12 | . . . 25 . . Level 3 . | . . . . . . Level 4 . | . . . . . . Level 5 . | . . . . . . High Security . | . . . . . . Max Security . | . . . . . . Peak Influence 523 | 15 175 116 523 299 . Initial 193 | . 3 42 . 193 . Average 149 | 2 48 22 227 176 . Influence Increases 2320 | 30 639 124 1262 265 . Destroy 0b10 Robot/C 1180 | . 280 80 660 160 . Destroy 0b10 Robot/NC 255 | 30 65 . 120 40 . Destroy Leader 332 | . 80 20 202 30 . Allied During Kill 102 | . . . 97 5 . Successful Hack 53 | . 34 . 19 . . Select Force Hacks 120 | . 60 . 60 . . Disable Machine 75 | . 30 . 30 15 . Destroy Structure 143 | . 30 24 74 15 . Lose Combat Pursuer 60 | . 60 . . . . Influence Decreases 2320 | 25 536 232 764 729 34 Entered New Map 407 | . 2 66 . 305 34 Time Decay 1729 | 25 440 126 734 404 . Lost Part 60 | . 20 30 10 . . Lost Ally 50 | . . 10 20 20 . Purge Threat 74 | . 74 . . . . Squads Dispatched 15 | . 5 . 9 1 . Investigation 12 | . 4 . 7 1 . Extermination . | . . . . . . Reinforcement 3 | . 1 . 2 . . Assault . | . . . . . . Garrison . | . . . . . . Intercept . | . . . . . . Searches Triggered . | . . . . . . Construction Impeded 1 | . . . 1 . . Haulers Reinforced . | . . . . . . Active Scanning Responses . | . . . . . . Cargo Convoy Interrupts . | . . . . . . Stealth | -11 -10 -10 -9 -9 -9 --------- Run | Yrd Mat Min Mat Min Exi Distress Signals 1 | . . . 1 . . Communications Jammed . | . . . . . . Distress Signals . | . . . . . . Times Spotted 109 | . 26 4 54 7 18 Peak Tracking Total 12 | . 4 2 6 3 12 Tactical Retreats 4 | . 2 . . . 2 Traps | -11 -10 -10 -9 -9 -9 ------- Run | Yrd Mat Min Mat Min Exi Traps Triggered 4 | . 2 . 2 . . Indirectly . | . . . . . . Trap Hack Attempts . | . . . . . . Triggered . | . . . . . . Disarmed . | . . . . . . Reprogrammed 3 | . 3 . . . . Reused . | . . . . . . Traps Extracted . | . . . . . . Installed . | . . . . . . Triggered . | . . . . . . Machines | -11 -10 -10 -9 -9 -9 ---------- Run | Yrd Mat Min Mat Min Exi Machines Disabled 12 | . 2 . 2 1 7 Max in Single Turn 3 | . 1 . 1 1 3 Machines Repaired . | . . . . . . Machines Dismantled . | . . . . . . Machines Sabotaged . | . . . . . . Overloaded Fab Kills . | . . . . . . Hacking | -11 -10 -10 -9 -9 -9 --------- Run | Yrd Mat Min Mat Min Exi Machines Accessed 29 | . 10 1 17 1 . Terminals 18 | . 7 . 11 . . Fabricators . | . . . . . . Repair Stations 3 | . 1 . 2 . . Recycling Units 4 | . 2 . 2 . . Scanalyzers 2 | . . . 2 . . Garrison Access . | . . . . . . Total Hacks 119 | . 46 1 71 1 . Successful 75 | . 28 1 45 1 . Failed 42 | . 17 . 25 . . Catastrophic . | . . . . . . Database Lockouts 2 | . 1 . 1 . . Manual 76 | . 38 . 38 . . Terminals 71 | . 32 . 39 . . Fabricators . | . . . . . . Repair Stations 14 | . 3 . 11 . . Recycling Units 19 | . 11 . 8 . . Scanalyzers 13 | . . . 13 . . Garrison Access . | . . . . . . Terminal Hacks 13 | . 5 1 6 1 . Robot Analysis 3 | . 1 . 2 . . Prototype ID Bank 4 | . . . 4 . . Open Door 2 | . . 1 . 1 . Terminal Index 1 | . 1 . . . . Unreport Threat 1 | . 1 . . . . Locate Traps 1 | . 1 . . . . Reprogram Traps 1 | . 1 . . . . Fabricator Hacks . | . . . . . . Repair Station Hacks 12 | . 2 . 10 . . Scan Component 6 | . 1 . 5 . . Repair 6 | . 1 . 5 . . Recycling Unit Hacks 1 | . 1 . . . . Retrieve Components 1 | . 1 . . . . Scanalyzer 11 | . . . 11 . . Insert Component 5 | . . . 5 . . Analyze 5 | . . . 5 . . Retrieve Study 1 | . . . 1 . . Garrison Access Hacks . | . . . . . . Unauthorized Hacks 38 | . 20 . 18 . . Terminals 25 | . 13 . 12 . . Assimilate 2 | . 2 . . . . Botnet 10 | . 5 . 5 . . Disrupt 1 | . . . 1 . . Operators 2 | . 1 . 1 . . Skim 10 | . 5 . 5 . . Fabricators . | . . . . . . Repair Stations 2 | . 1 . 1 . . Mechanics 1 | . . . 1 . . Patch 1 | . 1 . . . . Recycling Units 11 | . 6 . 5 . . Reject 4 | . 2 . 2 . . Recyclers 2 | . 1 . 1 . . Mask 1 | . 1 . . . . Tunnel 4 | . 2 . 2 . . Scanalyzers . | . . . . . . Garrison Access . | . . . . . . Data Cores Recovered . | . . . . . . Used . | . . . . . . Hacking Detections 27 | . 10 . 17 . . Full Trace Events 5 | . . . 5 . . Feedback Events 2 | . . . 2 . . Corruption 2 | . . . 2 . . Feedback Blocked . | . . . . . . Robot Schematics Acquired . | . . . . . . Robots Built . | . . . . . . Authchips . | . . . . . . Time . | . . . . . . Total Robot Build Rating . | . . . . . . Part Schematics Acquired 4 | . . . 4 . . Parts Built . | . . . . . . Authchips . | . . . . . . Time . | . . . . . . Total Part Build Rating . | . . . . . . Part Studies Acquired 1 | . . . 1 . . Parts Repaired 6 | . 1 . 5 . . Time 156 | . 26 . 130 . . Parts Recycled . | . . . . . . Recycled Matter . | . . . . . . Retrieved Matter . | . . . . . . Retrieved Components 10 | . 10 . . . . Parts Scanalyzed 4 | . . . 4 . . Part Schematics Acquired 4 | . . . 4 . . Parts Damaged . | . . . . . . Bothacking | -11 -10 -10 -9 -9 -9 ------------ Run | Yrd Mat Min Mat Min Exi Used RIF Installer . | . . . . . . Robots Hacked . | . . . . . . Non-combat . | . . . . . . Combat . | . . . . . . Robot Hacks Applied . | . . . . . . Relay Couplers Released . | . . . . . . Fabnet Peak Effective % . | . . . . . . Robots Rewired . | . . . . . . Allies Hacked . | . . . . . . Hacks Repelled . | . . . . . . Allies | -11 -10 -10 -9 -9 -9 -------- Run | Yrd Mat Min Mat Min Exi Total Allies 5 | . 1 3 . 1 . Largest Group 3 | . 1 3 3 1 . Highest-Rated Group 40 | . 10 40 40 31 . Highest-Rated Ally 31 | . 10 16 16 31 . Total Orders 8 | . 4 . 4 . . STAY 5 | . 3 . 2 . . FOLLOW 3 | . 1 . 2 . . Ally Attacks 56 | . . . 51 5 . Total Damage 538 | . . . 484 54 . Kills 13 | . . . 12 1 . Allies Corrupted . | . . . . . . Allies Melted . | . . . . . . Intel | -11 -10 -10 -9 -9 -9 ------- Run | Yrd Mat Min Mat Min Exi Active Infowar (turns) 3002 | 62 2334 87 519 . . Terrain 2483 | 62 2334 87 . . . Machine Analysis 519 | . . . 519 . . Robot Analysis Total 3 | . 1 . 2 . . Derelict Logs Recovered 4 | . . 2 . 2 . Drone Launches . | . . . . . . Drone Recoveries . | . . . . . . Exploration | -11 -10 -10 -9 -9 -9 ------------- Run | Yrd Mat Min Mat Min Exi Turns Passed 8412 | 139 2334 647 4074 973 245 Spaces Moved 4510 | 56 1142 376 2266 574 96 Core 3 | 3 . . . . . Treads 4507 | 53 1142 376 2266 574 96 Legs . | . . . . . . Wheels . | . . . . . . Hover . | . . . . . . Flight . | . . . . . . Fastest Speed 50 | 50 160 160 160 160 160 Average Speed 161 | 154 161 160 161 160 160 Slowest Speed 240 | 160 240 160 240 160 160 Overloaded Moves . | . . . . . . Propulsion Burnouts . | . . . . . . Robots Hopped . | . . . . . . Potential Cave-ins . | . . . . . . Cave-ins Triggered 1 | . . 1 . . . Exploration Rate (%) 71 | 5 97 91 98 92 43 Regions Visited 5 Branch Regions 3 Pre-discovered Areas 7 | . 4 . 3 . . Known Exits Taken 2 | . 1 1 . . . Unknown Exits Taken 3 | 1 . . 1 1 . Scrap Searched 5 | . . 1 . 4 . Spaces Dug 10 | . 6 . 4 . . Terrain Destroyed 223 | . 63 34 74 22 30 Melee . | . . . . . . Projectile 6 | . . . 1 . 5 AOE 217 | . 63 34 73 22 25 Terrain Rammed . | . . . . . . Walls Destroyed . | . . . . . . Machines Disabled . | . . . . . . Actions | -11 -10 -10 -9 -9 -9 --------- Run | Yrd Mat Min Mat Min Exi Total 5238 | 79 1481 410 2522 600 146 Wait 318 | . 213 . 92 1 12 Move 4505 | 55 1141 375 2265 573 96 Hop . | . . . . . . Pick Up 59 | 2 18 6 29 4 . Fast Attach 18 | 8 2 3 5 . . Attach 20 | . 1 3 7 . 9 Detach 3 | 1 . 1 1 . . Swap 55 | . 11 7 30 4 3 Drop 44 | . 9 8 21 4 2 Fire 215 | 13 86 7 71 14 24 Melee . | . . . . . . Ram . | . . . . . . Kick . | . . . . . . Crush 1 | . . . 1 . . Escape Stasis . | . . . . . . Rewire . | . . . . . . Trap . | . . . . . . Miscellaneous . | . . . . . . Route ------- -11/Scrapyard -10/Materials (discovered 5 exits: *Mat x3 / *Min / *Sub) -10/Mines (discovered 2 exits: *Mat x2) -9/Materials (discovered 4 exits: *Mat x3 / *Min) -9/Mines (discovered 2 exits: *Mat / [*Exi]) -9/Exiles History --------- Turn | Location | Event 29 | -11/Scrapyard | Discovered new exit (range 15) 140 | -11/Scrapyard | Entered Materials 311 | -10/Materials | Build established: Mutant 411 | -10/Materials | Discovered new exit (range 14) 475 | -10/Materials | Discovered new exit (range 8) 668 | -10/Materials | Discovered new exit (range 7) 842 | -10/Materials | Central database locked down 942 | -10/Materials | Discovered new exit (range 15) 1008 | -10/Materials | Repaired Lgt. Treads 1191 | -10/Materials | Discovered new exit (range 16) 1428 | -10/Materials | Identified exit to Materials 1428 | -10/Materials | Identified exit to Subcaves 1428 | -10/Materials | Identified exit to Mines 1488 | -10/Materials | Learned Storage stockpile data 1540 | -10/Materials | Loaded intel: 2 recycling unit locations 1581 | -10/Materials | Learned location of Storage (-8) 1629 | -10/Materials | Learned Storage emergency access door positions 1654 | -10/Materials | Learned 4 Recycling zone layouts 1683 | -10/Materials | Learned location of Recycling (-8) 1720 | -10/Materials | Learned 2 Materials zone layouts 2474 | -10/Materials | Entered Mines 2474 | -10/Mines | Accompanied by 1 ally 2480 | -10/Mines | Core integrity fell below 50% 2544 | -10/Mines | Found DCF Scrap (11 items) 2574 | -10/Mines | Crushed by falling debris 2711 | -10/Mines | Assisted by bots powering up and referring to "LRC-V3" 3076 | -10/Mines | Met a Derelict who couldn't figure out how to use a Trap Extractor 3121 | -10/Mines | Entered Materials 3121 | -9/Materials | Accompanied by 3 allies 3121 | -9/Materials | Evolved 2 slots: Propulsion x1, Weapon x1 3122 | -9/Materials | Identified exit to Materials 3279 | -9/Materials | Repaired Lgt. Treads 3307 | -9/Materials | Repaired Lgt. Treads 3334 | -9/Materials | Repaired Grenade Launcher 3424 | -9/Materials | Build established: Tank 3887 | -9/Materials | Discovered new exit (range 14) 3923 | -9/Materials | Build established: Skirmisher 4818 | -9/Materials | Discovered exit to Materials (range 14) 4828 | -9/Materials | Build established: Gunner 4968 | -9/Materials | Discovered exit to Materials (range 4) 5270 | -9/Materials | Central database locked down 5327 | -9/Materials | Learned 2 Storage zone layouts 5388 | -9/Materials | Repaired Lgt. Cannon+? 5411 | -9/Materials | Learned Storage emergency access door positions 5473 | -9/Materials | Learned Storage trap positions 5497 | -9/Materials | Learned Storage trap positions 6216 | -9/Materials | Build established: Scavenger-Gunner 6669 | -9/Materials | Repaired Lgt. Treads? 7194 | -9/Materials | Build established: Gunner 7195 | -9/Materials | Entered Mines 7195 | -9/Mines | Accompanied by 1 ally 7213 | -9/Mines | Met a Derelict bent on vengeance 7319 | -9/Mines | Learned 4 Materials zone layouts 7366 | -9/Mines | Received a Mining Laser from a helpful Derelict 7462 | -9/Mines | Found a hidden stash of uninstalled traps 7494 | -9/Mines | Discovered exit to Materials (range 5) 7640 | -9/Mines | Met a Derelict shopkeep closing up shop 7927 | -9/Mines | Learned location of 1 exit from Materials 8125 | -9/Mines | Deemed a non-threat by the Exiles lab entrance 8125 | -9/Mines | Discovered new exit (range 5) 8168 | -9/Mines | Entered Exiles 8208 | -9/Exiles | Met 8R-AWN 8236 | -9/Exiles | Met EX-HEX 8297 | -9/Exiles | Attacked by the Exiles 8318 | -9/Exiles | Core integrity fell below 50% 8339 | -9/Exiles | Core integrity fell below 20% 8367 | -9/Exiles | Lost 7 parts (1p3n3w) 8413 | -9/Exiles | Destroyed by 8R-AWN with 8R-AWN's Boregun Last Messages --------------- 08376_ Machine disabled. 08376_ 8R-AWN knocked back. 08378_ Penetrated by HV Slug. 08383_ 8R-AWN knocked back. 08383_ Penetrated by HV Slug. 08385_ HV Slug penetrates Machine. 08385_ HV Slug penetrates Wall. 08385_ HV Slug penetrates Machine. 08386_ 8R-AWN knocked back. 08387_ Power failure, Deuterium Engine shutdown. 08387_ Penetrated by HV Slug. 08390_ Critical hit (Destroy). 08390_ Flak Cannon destroyed. 08390_ Penetrated by HV Slug. 08394_ Critical hit (Destroy). 08394_ Penetrated by HV Slug. 08401_ Dropped Med. Matter Pod. 08402_ Extracted 100 matter. 08412_ Slug penetrates Wall. 08413_ Penetrated by HV Slug. Map ----- +----------------------------------------------------+ | ?????????????????????????????????????????????????? | | ?????????????????????????????????????????????????? | | ?????????????????????????????????????????????????? | | ?????????????????????????????????????????????????? | | ?????????????????????????????????????????????????? | | ?????????????????????????????????????????????????? | | ?????????????????????????????????????????????????? | | ?????????????????????????????????????????????????? | | ?????????????????????????????????????????????????? | | ?????????????????????????????????????????????????? | | ?????????????????????????????????????????????????? | | ????????????????????????????? ?????????????????? | | ???????????????????????????? ????????????????? | | ??????????????????????????#" #????????????????? | | ????????????# ??????????#"" #????????????????? | | ????????????# ?????##### " #????????????????? | | ???????####X# #"###""""" " ##?#?????????????? | | ?????? """""" " #;#?????????????? | | ????? "" """ #####?"???"????? | | ????? " " " """ """?? | | ???? "" " | | ???? " """ | | ??? " " | | ???? " " | | ?????" " | | ????#""" !|! g @"""" | | ????#" !!]%;;####""" | | ???#"" ###????????""" | | ???#" ##??????????#""" | | ??# ##???????????#"""" | | ??# % "###?????????##"" | | ??#" % # #####??####"""" | | ?? ]%# ####""" | | ?? % * """ | | ??? % % % | | ??? | | ??? " | | ???? """ | | ???? # " " " ""#" | | ????? "# ## ## ##""" """##""""" | | ????? """"##### #????###""""######## | | ?????? """#???# #??????######??????? | | ??????? % ""##??#! "!#???????????????? | | ???????? """#????#" !#???????????????? | | ?????????? ??????#" "#???????????????? | | ???????????? ???????#!!""!"#???????????????? | | ?????????????? ????????########???????????????? | | ?????????????????????????????????????????????????? | | ?????????????????????????????????????????????????? | | ?????????????????????????????????????????????????? | +----------------------------------------------------+ Best States ------------- Heat Dissipation 28 Energy Generation 14 Energy Capacity 280 Matter Stores 300 Matter Capacity 300 Sight Range 16 Terrain Scan Range 16 Terrain Scan Density 10 Armor Coverage 300 Resistance: KI 20 Core Shielding 20 Evasion (%) 40 Targeting Accuracy 8 Recoil Reduction 3 Offensive Hacking 10 Item Schematics ----------------- Adv. Targeting Computer | -9/Materials | Scanalyzed Assault Cannon | -9/Materials | Scanalyzed Flak Cannon | -9/Materials | Scanalyzed Reactive Plating | -9/Materials | Scanalyzed Robot Schematics ------------------ None Fabricated ------------ Nothing Repaired ---------- Lgt. Treads | 62% | -10/Materials Lgt. Treads | 6% | -9/Materials Lgt. Treads | 20% | -9/Materials Grenade Launcher | 20% | -9/Materials Lgt. Cannon | 40% | -9/Materials Lgt. Treads | 37% | -9/Materials Studied --------- Lgt. Cannon | -9/Materials | Hacked Alien Tech Used ----------------- None Achievements -------------- None Challenges ------------ None Game ------ Seed CompactDeflectorHarness Manual? 0 Play Time 00:45:24 Cumulative 656.6 hours Start 2026.01.31 @ 14:48:10 End 2026.01.31 @ 15:32:29 Sessions 1 Manual Loads 0 Difficulty Rogue Special Mode None Game No. 329 Rogue 329 Adventurer 0 Explorer 0 Win Type - Total 7 Types 3/0/2/1/0/0/0/0/0/1 Lore% 87 Gallery% 79 Achievement% 53 Wizard Run 0 Options --------- Layout 2 ASCII 0 Keyboard 1 Movement Vi Keybinds 0 Fullscreen 1 Font 16/Proggy Map View 55x47 Zoom Use 0% Tactical HUD 1 Map Filters NONE Filters NONE Steam 0 RUN: 1479cac9-f760-4f1b-8508-0a74b049d5f0